[Event "Titled Tuesday Blitz January 31 Early 2023"]
[White "Bortnyk, Olexandr"]
[Black "Vokhidov, Shamsiddin"]
[WhiteFideId "14120828"]
[BlackFideId "14204223"]
[WhiteElo "2605"]
[BlackElo "2586"]
[Result "1-0"]
[Round "10"]
[TimeControl "180+2"]
[Date "2023.01.31"]
[WhiteClock "0:01:26"]
[BlackClock "0:00:48"]

1. d4 {[%clk 0:03:00]}  e5 {[%clk 0:03:00]} 2. dxe5 {[%clk 0:03:00]}  Nc6 {[%clk 0:03:00]} 3. Nf3 {[%clk 0:02:59]}  d6 {[%clk 0:03:01]} 4. Bf4 {[%clk 0:02:55]}  Bg4 {[%clk 0:02:41]} 5. exd6 {[%clk 0:02:55]}  Qf6 {[%clk 0:02:41]} 6. g3 {[%clk 0:02:24]}  Qxb2 {[%clk 0:02:38]} 7. Nbd2 {[%clk 0:02:13]}  O-O-O {[%clk 0:02:05]} 8. dxc7 {[%clk 0:02:02]}  Rd7 {[%clk 0:01:51]} 9. Bg2 {[%clk 0:02:02]}  Bb4 {[%clk 0:01:44]} 10. O-O {[%clk 0:02:00]}  Nf6 {[%clk 0:01:40]} 11. Rb1 {[%clk 0:01:53]}  Qa3 {[%clk 0:01:25]} 12. Rb3 {[%clk 0:01:42]}  Qa5 {[%clk 0:01:25]} 13. Qb1 {[%clk 0:01:38]}  Bxd2 {[%clk 0:01:17]} 14. Nxd2 {[%clk 0:01:39]}  Rxd2 {[%clk 0:01:05]} 15. Rxb7 {[%clk 0:01:28]}  Rd5 {[%clk 0:00:48]} 16. Rb8+ {[%clk 0:01:26]} 1-0


[Site "https://www.chess.com"]

[Event "Titled Tuesday Blitz January 31 Early 2023"]
[White "Drygalov, Sergey"]
[Black "Deac, Bogdan-Daniel"]
[WhiteFideId "24171743"]
[BlackFideId "1226380"]
[WhiteElo "2547"]
[BlackElo "2700"]
[Result "1-0"]
[Round "10"]
[TimeControl "180+2"]
[Date "2023.01.31"]
[WhiteClock "0:00:05"]
[BlackClock "0:00:01"]

1. d4 {[%clk 0:02:45]}  Nf6 {[%clk 0:02:58]} 2. c4 {[%clk 0:02:45]}  e6 {[%clk 0:02:59]} 3. Nf3 {[%clk 0:02:46]}  d5 {[%clk 0:02:57]} 4. Nc3 {[%clk 0:02:46]}  a6 {[%clk 0:02:57]} 5. cxd5 {[%clk 0:02:44]}  exd5 {[%clk 0:02:57]} 6. Bg5 {[%clk 0:02:45]}  Be6 {[%clk 0:02:57]} 7. e3 {[%clk 0:02:45]}  Nbd7 {[%clk 0:02:58]} 8. Bd3 {[%clk 0:02:45]}  h6 {[%clk 0:02:58]} 9. Bh4 {[%clk 0:02:44]}  Bd6 {[%clk 0:02:57]} 10. Qc2 {[%clk 0:02:39]}  c6 {[%clk 0:02:56]} 11. O-O {[%clk 0:02:33]}  O-O {[%clk 0:02:55]} 12. Nd2 {[%clk 0:02:31]}  Re8 {[%clk 0:01:17]} 13. f4 {[%clk 0:02:24]}  Nb6 {[%clk 0:01:17]} 14. Nf3 {[%clk 0:02:21]}  c5 {[%clk 0:01:03]} 15. Ne5 {[%clk 0:02:17]}  cxd4 {[%clk 0:00:53]} 16. exd4 {[%clk 0:02:17]}  Be7 {[%clk 0:00:51]} 17. Rae1 {[%clk 0:02:10]}  Rc8 {[%clk 0:00:50]} 18. Kh1 {[%clk 0:01:38]}  Nc4 {[%clk 0:00:49]} 19. Qe2 {[%clk 0:01:23]}  b5 {[%clk 0:00:43]} 20. Bxf6 {[%clk 0:01:07]}  Bxf6 {[%clk 0:00:42]} 21. Qh5 {[%clk 0:01:07]}  Nxb2 {[%clk 0:00:16]} 22. f5 {[%clk 0:00:58]}  Nxd3 {[%clk 0:00:12]} 23. fxe6 {[%clk 0:00:57]}  fxe6 {[%clk 0:00:12]} 24. Qf7+ {[%clk 0:00:45]}  Kh8 {[%clk 0:00:12]} 25. Nxd3 {[%clk 0:00:43]}  Rxc3 {[%clk 0:00:11]} 26. Nf4 {[%clk 0:00:31]}  Rc7 {[%clk 0:00:10]} 27. Qh5 {[%clk 0:00:27]}  Rc6 {[%clk 0:00:04]} 28. Nxd5 {[%clk 0:00:21]}  Bxd4 {[%clk 0:00:04]} 29. Nf4 {[%clk 0:00:21]}  e5 {[%clk 0:00:03]} 30. Qf7 {[%clk 0:00:13]}  Kh7 {[%clk 0:00:02]} 31. Qf5+ {[%clk 0:00:13]}  Kg8 {[%clk 0:00:02]} 32. Ng6 {[%clk 0:00:13]}  Rf6 {[%clk 0:00:02]} 33. Qe4 {[%clk 0:00:13]}  Ree6 {[%clk 0:00:02]} 34. Nh4 {[%clk 0:00:13]}  Rxf1+ {[%clk 0:00:02]} 35. Rxf1 {[%clk 0:00:14]}  Rf6 {[%clk 0:00:03]} 36. Nf5 {[%clk 0:00:14]}  Qf8 {[%clk 0:00:02]} 37. g4 {[%clk 0:00:12]}  Kh8 {[%clk 0:00:02]} 38. Rc1 {[%clk 0:00:10]}  Qg8 {[%clk 0:00:02]} 39. Nh4 {[%clk 0:00:09]}  g5 {[%clk 0:00:02]} 40. Nf5 {[%clk 0:00:09]}  Rf8 {[%clk 0:00:02]} 41. Rc7 {[%clk 0:00:09]}  Qxa2 {[%clk 0:00:02]} 42. Ng3 {[%clk 0:00:06]}  Qg8 {[%clk 0:00:01]} 43. Rc6 {[%clk 0:00:05]} 1-0


[Site "https://www.chess.com"]

[Event "Titled Tuesday Blitz January 31 Early 2023"]
[White "Samunenkov, Ihor"]
[Black "Andreikin, Dmitry"]
[WhiteFideId "14187086"]
[BlackFideId "4158814"]
[WhiteElo "2501"]
[BlackElo "2729"]
[Result "0-1"]
[Round "10"]
[TimeControl "180+2"]
[Date "2023.01.31"]
[WhiteClock "0:00:09"]
[BlackClock "0:01:25"]

1. d4 {[%clk 0:03:00]}  Nf6 {[%clk 0:02:59]} 2. c4 {[%clk 0:03:01]}  e6 {[%clk 0:03:00]} 3. Nc3 {[%clk 0:03:02]}  d5 {[%clk 0:03:00]} 4. cxd5 {[%clk 0:03:02]}  exd5 {[%clk 0:03:01]} 5. Bg5 {[%clk 0:03:02]}  c6 {[%clk 0:03:01]} 6. Qc2 {[%clk 0:03:02]}  h6 {[%clk 0:03:00]} 7. Bh4 {[%clk 0:03:02]}  Na6 {[%clk 0:02:59]} 8. a3 {[%clk 0:02:45]}  Be7 {[%clk 0:02:59]} 9. e3 {[%clk 0:02:45]}  Qa5 {[%clk 0:02:59]} 10. Nf3 {[%clk 0:02:35]}  g5 {[%clk 0:02:52]} 11. Bg3 {[%clk 0:02:30]}  Ne4 {[%clk 0:02:52]} 12. Bxa6 {[%clk 0:02:10]}  Nxc3 {[%clk 0:02:43]} 13. Bd3 {[%clk 0:02:10]}  Ne4+ {[%clk 0:02:40]} 14. Ke2 {[%clk 0:02:10]}  Bg4 {[%clk 0:02:33]} 15. b4 {[%clk 0:02:04]}  Qb6 {[%clk 0:02:28]} 16. Bxe4 {[%clk 0:01:51]}  dxe4 {[%clk 0:02:28]} 17. Qxe4 {[%clk 0:01:52]}  f5 {[%clk 0:02:26]} 18. Qe6 {[%clk 0:01:39]}  c5 {[%clk 0:02:02]} 19. Qxb6 {[%clk 0:01:27]}  axb6 {[%clk 0:02:03]} 20. Rhc1 {[%clk 0:00:52]}  f4 {[%clk 0:01:57]} 21. exf4 {[%clk 0:00:50]}  O-O {[%clk 0:01:58]} 22. fxg5 {[%clk 0:00:43]}  Bxg5 {[%clk 0:01:58]} 23. Rd1 {[%clk 0:00:40]}  c4 {[%clk 0:01:51]} 24. Be5 {[%clk 0:00:37]}  c3 {[%clk 0:01:49]} 25. Kd3 {[%clk 0:00:19]}  Rac8 {[%clk 0:01:40]} 26. Kc2 {[%clk 0:00:15]}  Bf5+ {[%clk 0:01:37]} 27. Kb3 {[%clk 0:00:15]}  Be6+ {[%clk 0:01:36]} 28. Kc2 {[%clk 0:00:15]}  Bf5+ {[%clk 0:01:36]} 29. Kb3 {[%clk 0:00:15]}  c2 {[%clk 0:01:36]} 30. Rdc1 {[%clk 0:00:16]}  Bxc1 {[%clk 0:01:33]} 31. Rxc1 {[%clk 0:00:17]}  Be4 {[%clk 0:01:33]} 32. Nd2 {[%clk 0:00:17]}  Bd5+ {[%clk 0:01:30]} 33. Kb2 {[%clk 0:00:17]}  Rxf2 {[%clk 0:01:31]} 34. Rxc2 {[%clk 0:00:18]}  Rxc2+ {[%clk 0:01:30]} 35. Kxc2 {[%clk 0:00:19]}  Rxg2 {[%clk 0:01:29]} 36. Kd3 {[%clk 0:00:19]}  b5 {[%clk 0:01:28]} 37. Bg3 {[%clk 0:00:11]}  Kf7 {[%clk 0:01:27]} 38. Kc3 {[%clk 0:00:10]}  Ke6 {[%clk 0:01:27]} 39. Nb3 {[%clk 0:00:09]}  Bxb3 {[%clk 0:01:26]} 40. Kxb3 {[%clk 0:00:10]}  Kd5 {[%clk 0:01:26]} 41. Be5 {[%clk 0:00:11]}  Rf2 {[%clk 0:01:25]} 42. Kc3 {[%clk 0:00:08]}  Rf3+ {[%clk 0:01:26]} 43. Kc2 {[%clk 0:00:09]}  Rxa3 {[%clk 0:01:25]} 0-1


[Site "https://www.chess.com"]

[Event "Titled Tuesday Blitz January 31 Early 2023"]
[White "Urazayev, Arystanbek"]
[Black "Kozak, Adam"]
[WhiteFideId "13709810"]
[BlackFideId "753246"]
[WhiteElo "2460"]
[BlackElo "2572"]
[Result "1-0"]
[Round "10"]
[TimeControl "180+2"]
[Date "2023.01.31"]
[WhiteClock "0:00:51"]
[BlackClock "0:00:10"]

1. d4 {[%clk 0:03:00]}  Nf6 {[%clk 0:02:58]} 2. c4 {[%clk 0:03:01]}  e6 {[%clk 0:02:58]} 3. Nc3 {[%clk 0:03:01]}  Bb4 {[%clk 0:02:50]} 4. Nf3 {[%clk 0:03:01]}  b6 {[%clk 0:02:49]} 5. e3 {[%clk 0:03:01]}  Ne4 {[%clk 0:02:47]} 6. Qc2 {[%clk 0:02:55]}  Bb7 {[%clk 0:02:47]} 7. Bd3 {[%clk 0:02:52]}  Bxc3+ {[%clk 0:02:45]} 8. bxc3 {[%clk 0:02:52]}  f5 {[%clk 0:02:43]} 9. Nd2 {[%clk 0:02:47]}  Nxd2 {[%clk 0:02:00]} 10. Qxd2 {[%clk 0:02:45]}  O-O {[%clk 0:01:57]} 11. O-O {[%clk 0:02:42]}  Qh4 {[%clk 0:01:57]} 12. f3 {[%clk 0:02:37]}  d6 {[%clk 0:01:56]} 13. c5 {[%clk 0:02:35]}  Nd7 {[%clk 0:01:54]} 14. cxd6 {[%clk 0:02:34]}  cxd6 {[%clk 0:01:55]} 15. Ba3 {[%clk 0:02:35]}  Qe7 {[%clk 0:01:50]} 16. e4 {[%clk 0:02:35]}  fxe4 {[%clk 0:01:48]} 17. fxe4 {[%clk 0:02:36]}  e5 {[%clk 0:01:38]} 18. Bb5 {[%clk 0:02:16]}  Nf6 {[%clk 0:01:35]} 19. dxe5 {[%clk 0:02:07]}  Qxe5 {[%clk 0:01:34]} 20. Bxd6 {[%clk 0:02:00]}  Qxb5 {[%clk 0:01:32]} 21. Bxf8 {[%clk 0:01:45]}  Rxf8 {[%clk 0:01:31]} 22. Qd6 {[%clk 0:01:39]}  Bxe4 {[%clk 0:01:23]} 23. Qe6+ {[%clk 0:01:39]}  Kh8 {[%clk 0:01:23]} 24. Qxe4 {[%clk 0:01:39]}  Qc5+ {[%clk 0:01:16]} 25. Qd4 {[%clk 0:01:39]}  Qc6 {[%clk 0:01:12]} 26. a4 {[%clk 0:01:36]}  h6 {[%clk 0:01:08]} 27. a5 {[%clk 0:01:35]}  Rc8 {[%clk 0:01:07]} 28. axb6 {[%clk 0:01:34]}  axb6 {[%clk 0:01:08]} 29. Rab1 {[%clk 0:01:29]}  Qxc3 {[%clk 0:01:07]} 30. Qxc3 {[%clk 0:01:29]}  Rxc3 {[%clk 0:01:08]} 31. Rxb6 {[%clk 0:01:30]}  Kh7 {[%clk 0:01:08]} 32. h3 {[%clk 0:01:29]}  Rc7 {[%clk 0:01:08]} 33. Rfb1 {[%clk 0:01:29]}  Rc3 {[%clk 0:01:04]} 34. Rb7 {[%clk 0:01:28]}  Nh5 {[%clk 0:01:03]} 35. R1b5 {[%clk 0:01:21]}  Nf6 {[%clk 0:00:59]} 36. Rb3 {[%clk 0:01:15]}  Rc2 {[%clk 0:00:47]} 37. Rf3 {[%clk 0:01:10]}  Rc6 {[%clk 0:00:41]} 38. Kh2 {[%clk 0:01:09]}  Re6 {[%clk 0:00:40]} 39. Rg3 {[%clk 0:01:07]}  Nh5 {[%clk 0:00:40]} 40. Rg4 {[%clk 0:01:07]}  Re8 {[%clk 0:00:36]} 41. Ra4 {[%clk 0:01:02]}  Re2 {[%clk 0:00:34]} 42. Raa7 {[%clk 0:01:01]}  Kg6 {[%clk 0:00:18]} 43. Kg1 {[%clk 0:01:00]}  Kf6 {[%clk 0:00:12]} 44. Rb6+ {[%clk 0:00:50]}  Kg5 {[%clk 0:00:12]} 45. Ra5+ {[%clk 0:00:51]}  Kh4 {[%clk 0:00:10]} 46. Rb4+ {[%clk 0:00:51]}  Kg3 {[%clk 0:00:10]} 47. Rg4# {[%clk 0:00:51]} 1-0


[Site "https://www.chess.com"]

[Event "Titled Tuesday Blitz January 31 Early 2023"]
[White "Fier, Alexandr"]
[Black "Rasulov, Vugar"]
[WhiteFideId "2107139"]
[BlackFideId "13402390"]
[WhiteElo "2589"]
[BlackElo "2523"]
[Result "0-1"]
[Round "10"]
[TimeControl "180+2"]
[Date "2023.01.31"]
[WhiteClock "0:02:14"]
[BlackClock "0:01:48"]

1. d4 {[%clk 0:03:00]}  Nf6 {[%clk 0:02:59]} 2. c4 {[%clk 0:03:00]}  e6 {[%clk 0:03:00]} 3. Nc3 {[%clk 0:03:01]}  Bb4 {[%clk 0:03:00]} 4. e3 {[%clk 0:03:01]}  O-O {[%clk 0:03:00]} 5. Ne2 {[%clk 0:03:02]}  d5 {[%clk 0:03:00]} 6. a3 {[%clk 0:03:02]}  Be7 {[%clk 0:03:01]} 7. Ng3 {[%clk 0:03:02]}  c5 {[%clk 0:02:56]} 8. dxc5 {[%clk 0:03:00]}  Bxc5 {[%clk 0:02:56]} 9. b4 {[%clk 0:02:59]}  Bd6 {[%clk 0:02:53]} 10. Bb2 {[%clk 0:02:58]}  Nc6 {[%clk 0:02:53]} 11. cxd5 {[%clk 0:02:56]}  exd5 {[%clk 0:02:54]} 12. Be2 {[%clk 0:02:55]}  Be5 {[%clk 0:02:42]} 13. O-O {[%clk 0:02:44]}  d4 {[%clk 0:02:43]} 14. exd4 {[%clk 0:02:45]}  Nxd4 {[%clk 0:02:43]} 15. Bd3 {[%clk 0:02:35]}  Bg4 {[%clk 0:02:40]} 16. f3 {[%clk 0:02:33]}  Be6 {[%clk 0:02:40]} 17. f4 {[%clk 0:02:33]}  Bc7 {[%clk 0:02:38]} 18. Nce4 {[%clk 0:02:30]}  Ng4 {[%clk 0:02:22]} 19. Ng5 {[%clk 0:02:23]}  Bxf4 {[%clk 0:01:49]} 20. Rxf4 {[%clk 0:02:14]}  Qxg5 {[%clk 0:01:48]} 21. Rxd4 {[%clk 0:02:14]}  Qe3+ {[%clk 0:01:48]} 0-1


[Site "https://www.chess.com"]

[Event "Titled Tuesday Blitz January 31 Early 2023"]
[White "Pakleza, Zbigniew"]
[Black "Dominguez Perez, Leinier"]
[WhiteFideId "1119290"]
[BlackFideId "3503240"]
[WhiteElo "2494"]
[BlackElo "2739"]
[Result "0-1"]
[Round "10"]
[TimeControl "180+2"]
[Date "2023.01.31"]
[WhiteClock "0:00:08"]
[BlackClock "0:00:18"]

1. d4 {[%clk 0:03:00]}  d5 {[%clk 0:02:59]} 2. Bf4 {[%clk 0:03:00]}  Bf5 {[%clk 0:02:48]} 3. e3 {[%clk 0:02:56]}  c6 {[%clk 0:02:46]} 4. Nf3 {[%clk 0:02:50]}  Nf6 {[%clk 0:02:44]} 5. c4 {[%clk 0:02:43]}  e6 {[%clk 0:02:44]} 6. Nc3 {[%clk 0:02:41]}  Be7 {[%clk 0:02:40]} 7. Qb3 {[%clk 0:02:40]}  Qc8 {[%clk 0:02:39]} 8. h3 {[%clk 0:02:37]}  h6 {[%clk 0:02:34]} 9. Rc1 {[%clk 0:02:37]}  O-O {[%clk 0:02:30]} 10. Be2 {[%clk 0:02:37]}  Nbd7 {[%clk 0:02:23]} 11. O-O {[%clk 0:02:37]}  a5 {[%clk 0:02:22]} 12. a3 {[%clk 0:02:29]}  dxc4 {[%clk 0:02:05]} 13. Bxc4 {[%clk 0:02:28]}  b5 {[%clk 0:02:04]} 14. Be2 {[%clk 0:02:24]}  Qb7 {[%clk 0:01:59]} 15. Ne5 {[%clk 0:02:18]}  a4 {[%clk 0:01:51]} 16. Nxa4 {[%clk 0:01:52]}  Nxe5 {[%clk 0:01:41]} 17. dxe5 {[%clk 0:01:49]}  Ne4 {[%clk 0:01:41]} 18. Nc3 {[%clk 0:01:31]}  Nd2 {[%clk 0:01:41]} 19. Qd1 {[%clk 0:01:31]}  Nxf1 {[%clk 0:01:22]} 20. Qxf1 {[%clk 0:01:32]}  b4 {[%clk 0:01:16]} 21. axb4 {[%clk 0:01:33]}  Qxb4 {[%clk 0:01:15]} 22. Bf3 {[%clk 0:01:15]}  Rfc8 {[%clk 0:01:10]} 23. Ne2 {[%clk 0:01:02]}  Qxb2 {[%clk 0:01:03]} 24. Nd4 {[%clk 0:00:56]}  Bd3 {[%clk 0:00:59]} 25. Qd1 {[%clk 0:00:57]}  Ra2 {[%clk 0:00:57]} 26. Nxc6 {[%clk 0:00:48]}  Rxc6 {[%clk 0:00:40]} 27. Bxc6 {[%clk 0:00:43]}  Ba3 {[%clk 0:00:32]} 28. Rc5 {[%clk 0:00:13]}  Ra1 {[%clk 0:00:23]} 29. Kh2 {[%clk 0:00:07]}  Rxd1 {[%clk 0:00:22]} 30. Ra5 {[%clk 0:00:08]}  Bf8 {[%clk 0:00:18]} 0-1


[Site "https://www.chess.com"]

[Event "Titled Tuesday Blitz January 31 Early 2023"]
[White "Zhu, Jiner"]
[Black "Oparin, Grigoriy"]
[WhiteFideId "8608059"]
[BlackFideId "24125890"]
[WhiteElo "2507"]
[BlackElo "2667"]
[Result "0-1"]
[Round "10"]
[TimeControl "180+2"]
[Date "2023.01.31"]
[WhiteClock "0:00:32"]
[BlackClock "0:00:17"]

1. e4 {[%clk 0:03:00]}  e5 {[%clk 0:02:58]} 2. Nf3 {[%clk 0:03:00]}  Nc6 {[%clk 0:02:58]} 3. Bc4 {[%clk 0:03:00]}  Nf6 {[%clk 0:02:58]} 4. O-O {[%clk 0:02:56]}  Nxe4 {[%clk 0:02:54]} 5. Bd5 {[%clk 0:02:39]}  Nf6 {[%clk 0:02:50]} 6. Bxc6 {[%clk 0:02:39]}  dxc6 {[%clk 0:02:51]} 7. Nxe5 {[%clk 0:02:40]}  Bd6 {[%clk 0:02:50]} 8. d4 {[%clk 0:02:36]}  O-O {[%clk 0:02:50]} 9. Re1 {[%clk 0:02:33]}  h6 {[%clk 0:02:47]} 10. Nd2 {[%clk 0:02:29]}  Bf5 {[%clk 0:02:44]} 11. Ndc4 {[%clk 0:02:28]}  Re8 {[%clk 0:02:41]} 12. c3 {[%clk 0:02:24]}  Bf8 {[%clk 0:02:33]} 13. Bf4 {[%clk 0:02:21]}  Be6 {[%clk 0:02:26]} 14. Bg3 {[%clk 0:02:10]}  c5 {[%clk 0:02:24]} 15. dxc5 {[%clk 0:02:07]}  Bxc5 {[%clk 0:02:20]} 16. Qc2 {[%clk 0:02:07]}  Qc8 {[%clk 0:02:13]} 17. Rad1 {[%clk 0:02:02]}  a5 {[%clk 0:02:13]} 18. h3 {[%clk 0:01:56]}  a4 {[%clk 0:02:10]} 19. b4 {[%clk 0:01:43]}  axb3 {[%clk 0:02:08]} 20. axb3 {[%clk 0:01:44]}  b5 {[%clk 0:01:55]} 21. b4 {[%clk 0:01:41]}  Bxf2+ {[%clk 0:01:47]} 22. Qxf2 {[%clk 0:01:41]}  bxc4 {[%clk 0:01:44]} 23. Qc5 {[%clk 0:01:40]}  Ra2 {[%clk 0:01:38]} 24. Nf3 {[%clk 0:01:19]}  Qa8 {[%clk 0:01:17]} 25. Rd2 {[%clk 0:01:06]}  Rxd2 {[%clk 0:00:32]} 26. Nxd2 {[%clk 0:01:06]}  Bd5 {[%clk 0:00:32]} 27. Rxe8+ {[%clk 0:00:51]}  Qxe8 {[%clk 0:00:33]} 28. Nf1 {[%clk 0:00:37]}  Qe2 {[%clk 0:00:25]} 29. Ne3 {[%clk 0:00:36]}  Ne4 {[%clk 0:00:17]} 30. Qxd5 {[%clk 0:00:32]}  Qxe3+ {[%clk 0:00:17]} 0-1


[Site "https://www.chess.com"]

[Event "Titled Tuesday Blitz January 31 Early 2023"]
[White "Timofeev, Artyom"]
[Black "Bilych, Olexiy"]
[WhiteFideId "4140419"]
[BlackFideId "14156504"]
[WhiteElo "2567"]
[BlackElo "2441"]
[Result "1-0"]
[Round "10"]
[TimeControl "180+2"]
[Date "2023.01.31"]
[WhiteClock "0:00:42"]
[BlackClock "0:00:29"]

1. e4 {[%clk 0:03:00]}  c5 {[%clk 0:02:59]} 2. Nf3 {[%clk 0:02:59]}  Nc6 {[%clk 0:02:59]} 3. d4 {[%clk 0:02:59]}  cxd4 {[%clk 0:02:59]} 4. Nxd4 {[%clk 0:03:00]}  Nf6 {[%clk 0:02:59]} 5. Nc3 {[%clk 0:02:59]}  e5 {[%clk 0:02:59]} 6. Ndb5 {[%clk 0:02:59]}  d6 {[%clk 0:02:59]} 7. Bg5 {[%clk 0:02:59]}  a6 {[%clk 0:02:59]} 8. Na3 {[%clk 0:02:59]}  b5 {[%clk 0:03:00]} 9. Nd5 {[%clk 0:02:57]}  Be7 {[%clk 0:03:00]} 10. Bxf6 {[%clk 0:02:56]}  Bxf6 {[%clk 0:03:01]} 11. c4 {[%clk 0:02:56]}  b4 {[%clk 0:02:57]} 12. Nc2 {[%clk 0:02:56]}  O-O {[%clk 0:02:57]} 13. g3 {[%clk 0:02:53]}  a5 {[%clk 0:02:55]} 14. h4 {[%clk 0:02:53]}  g6 {[%clk 0:02:54]} 15. Bg2 {[%clk 0:02:45]}  Bg7 {[%clk 0:02:53]} 16. h5 {[%clk 0:02:45]}  Be6 {[%clk 0:02:52]} 17. Qd3 {[%clk 0:02:33]}  Rb8 {[%clk 0:02:50]} 18. b3 {[%clk 0:02:33]}  Ra8 {[%clk 0:02:25]} 19. Rd1 {[%clk 0:02:25]}  Nb8 {[%clk 0:02:21]} 20. Nde3 {[%clk 0:02:22]}  Ra7 {[%clk 0:01:52]} 21. Bh3 {[%clk 0:02:15]}  Bxh3 {[%clk 0:01:44]} 22. Rxh3 {[%clk 0:02:15]}  Rd7 {[%clk 0:01:44]} 23. Kf1 {[%clk 0:02:07]}  Na6 {[%clk 0:01:43]} 24. Nd5 {[%clk 0:01:47]}  Nc5 {[%clk 0:01:43]} 25. Qe2 {[%clk 0:01:48]}  Qg5 {[%clk 0:01:33]} 26. Kg2 {[%clk 0:01:47]}  f5 {[%clk 0:01:27]} 27. hxg6 {[%clk 0:01:46]}  hxg6 {[%clk 0:01:27]} 28. exf5 {[%clk 0:01:46]}  Qxf5 {[%clk 0:01:27]} 29. Nce3 {[%clk 0:01:32]}  Qg5 {[%clk 0:01:27]} 30. Qg4 {[%clk 0:01:23]}  Qxg4 {[%clk 0:01:19]} 31. Nxg4 {[%clk 0:01:23]}  e4 {[%clk 0:01:20]} 32. Nf4 {[%clk 0:01:01]}  g5 {[%clk 0:01:10]} 33. Nd5 {[%clk 0:01:00]}  Nd3 {[%clk 0:01:05]} 34. Rh5 {[%clk 0:00:59]}  Rdf7 {[%clk 0:00:58]} 35. Rf1 {[%clk 0:00:57]}  Ne5 {[%clk 0:00:31]} 36. Rxg5 {[%clk 0:00:55]}  Nf3 {[%clk 0:00:31]} 37. Nh6+ {[%clk 0:00:53]}  Kh7 {[%clk 0:00:29]} 38. Nxf7 {[%clk 0:00:53]}  Rxf7 {[%clk 0:00:29]} 39. Rg4 {[%clk 0:00:50]}  Nd2 {[%clk 0:00:28]} 40. Rh1+ {[%clk 0:00:49]}  Kg8 {[%clk 0:00:29]} 41. Rf4 {[%clk 0:00:42]} 1-0


[Site "https://www.chess.com"]

[Event "Titled Tuesday Blitz January 31 Early 2023"]
[White "Fernandez Guillen, Ernesto J."]
[Black "Yeletsky, Ivan"]
[WhiteFideId "3512428"]
[BlackFideId "24180327"]
[WhiteElo "2477"]
[BlackElo "2494"]
[Result "1-0"]
[Round "10"]
[TimeControl "180+2"]
[Date "2023.01.31"]
[WhiteClock "0:00:05"]
[BlackClock "0:00:06"]

1. e4 {[%clk 0:02:52]}  Nf6 {[%clk 0:02:59]} 2. Nc3 {[%clk 0:02:51]}  e5 {[%clk 0:02:58]} 3. f4 {[%clk 0:02:51]}  d5 {[%clk 0:02:58]} 4. fxe5 {[%clk 0:02:52]}  Nxe4 {[%clk 0:02:58]} 5. Nf3 {[%clk 0:02:52]}  Be7 {[%clk 0:02:54]} 6. Bd3 {[%clk 0:02:51]}  Nc5 {[%clk 0:02:53]} 7. O-O {[%clk 0:02:47]}  O-O {[%clk 0:02:48]} 8. h3 {[%clk 0:02:44]}  Nc6 {[%clk 0:02:41]} 9. Bb5 {[%clk 0:02:44]}  d4 {[%clk 0:02:42]} 10. Ne2 {[%clk 0:02:44]}  d3 {[%clk 0:02:27]} 11. cxd3 {[%clk 0:02:35]}  Nxd3 {[%clk 0:02:16]} 12. Bxd3 {[%clk 0:02:29]}  Qxd3 {[%clk 0:02:17]} 13. Nf4 {[%clk 0:02:29]}  Bc5+ {[%clk 0:02:12]} 14. Kh1 {[%clk 0:02:23]}  Qd8 {[%clk 0:02:13]} 15. Qc2 {[%clk 0:02:09]}  Bb6 {[%clk 0:02:12]} 16. Rd1 {[%clk 0:02:03]}  Nd4 {[%clk 0:02:07]} 17. Qe4 {[%clk 0:02:02]}  Bf5 {[%clk 0:02:04]} 18. Qxb7 {[%clk 0:01:57]}  Rb8 {[%clk 0:01:35]} 19. Qd5 {[%clk 0:01:49]}  Nc2 {[%clk 0:01:35]} 20. Rb1 {[%clk 0:00:59]}  Nb4 {[%clk 0:01:34]} 21. Qxd8 {[%clk 0:00:48]}  Rfxd8 {[%clk 0:01:35]} 22. d3 {[%clk 0:00:48]}  Nxd3 {[%clk 0:01:04]} 23. Nxd3 {[%clk 0:00:47]}  Bxd3 {[%clk 0:00:49]} 24. Ra1 {[%clk 0:00:47]}  Be4 {[%clk 0:00:50]} 25. Bf4 {[%clk 0:00:44]}  h6 {[%clk 0:00:46]} 26. Rac1 {[%clk 0:00:32]}  Kh7 {[%clk 0:00:35]} 27. b3 {[%clk 0:00:31]}  Rxd1+ {[%clk 0:00:28]} 28. Rxd1 {[%clk 0:00:31]}  g5 {[%clk 0:00:29]} 29. Bg3 {[%clk 0:00:31]}  Kg6 {[%clk 0:00:26]} 30. e6 {[%clk 0:00:15]}  fxe6 {[%clk 0:00:21]} 31. Ne5+ {[%clk 0:00:15]}  Kh5 {[%clk 0:00:22]} 32. Be1 {[%clk 0:00:05]}  Rf8 {[%clk 0:00:18]} 33. Kh2 {[%clk 0:00:04]}  g4 {[%clk 0:00:05]} 34. hxg4+ {[%clk 0:00:04]}  Kg5 {[%clk 0:00:06]} 35. Bd2+ {[%clk 0:00:05]} 1-0


[Site "https://www.chess.com"]

[Event "Titled Tuesday Blitz January 31 Early 2023"]
[White "Kosteniuk, Alexandra"]
[Black "Sychev, Klementy"]
[WhiteFideId "4128125"]
[BlackFideId "4114060"]
[WhiteElo "2535"]
[BlackElo "2547"]
[Result "1/2-1/2"]
[Round "10"]
[TimeControl "180+2"]
[Date "2023.01.31"]
[WhiteClock "0:00:10"]
[BlackClock "0:00:04"]

1. e4 {[%clk 0:03:00]}  e5 {[%clk 0:02:58]} 2. Nf3 {[%clk 0:03:01]}  Nc6 {[%clk 0:02:58]} 3. Bc4 {[%clk 0:03:01]}  Nf6 {[%clk 0:02:58]} 4. d3 {[%clk 0:03:02]}  Bc5 {[%clk 0:02:58]} 5. Nc3 {[%clk 0:03:01]}  h6 {[%clk 0:02:54]} 6. h3 {[%clk 0:03:01]}  a6 {[%clk 0:02:53]} 7. Be3 {[%clk 0:02:55]}  d6 {[%clk 0:02:53]} 8. Bxc5 {[%clk 0:02:54]}  dxc5 {[%clk 0:02:53]} 9. a4 {[%clk 0:02:53]}  Qd6 {[%clk 0:02:49]} 10. O-O {[%clk 0:02:52]}  b6 {[%clk 0:02:48]} 11. Ne2 {[%clk 0:02:37]}  Be6 {[%clk 0:02:37]} 12. Nd2 {[%clk 0:02:36]}  O-O {[%clk 0:02:33]} 13. f4 {[%clk 0:02:31]}  exf4 {[%clk 0:02:25]} 14. Nxf4 {[%clk 0:02:29]}  Ne5 {[%clk 0:02:21]} 15. Nxe6 {[%clk 0:02:19]}  fxe6 {[%clk 0:02:20]} 16. Bb3 {[%clk 0:02:06]}  b5 {[%clk 0:02:17]} 17. Qe2 {[%clk 0:01:44]}  Rad8 {[%clk 0:02:03]} 18. axb5 {[%clk 0:01:38]}  axb5 {[%clk 0:02:02]} 19. Nf3 {[%clk 0:01:27]}  Nh5 {[%clk 0:02:01]} 20. Nxe5 {[%clk 0:01:17]}  Qxe5 {[%clk 0:02:00]} 21. Qg4 {[%clk 0:01:06]}  c4 {[%clk 0:01:10]} 22. dxc4 {[%clk 0:01:05]}  Ng3 {[%clk 0:00:57]} 23. Rxf8+ {[%clk 0:00:56]}  Rxf8 {[%clk 0:00:58]} 24. cxb5 {[%clk 0:00:55]}  Kh7 {[%clk 0:00:54]} 25. Qxe6 {[%clk 0:00:26]}  Qf4 {[%clk 0:00:33]} 26. Bc4 {[%clk 0:00:10]}  h5 {[%clk 0:00:24]} 27. e5 {[%clk 0:00:09]}  Qd4+ {[%clk 0:00:10]} 28. Kh2 {[%clk 0:00:09]}  Qf4 {[%clk 0:00:08]} 29. Kg1 {[%clk 0:00:10]}  Qe3+ {[%clk 0:00:07]} 30. Kh2 {[%clk 0:00:09]}  Qf4 {[%clk 0:00:04]} 31. Bd3+ {[%clk 0:00:10]}  Kh8 {[%clk 0:00:04]} 32. Kg1 {[%clk 0:00:10]}  Qd4+ {[%clk 0:00:03]} 33. Kh2 {[%clk 0:00:10]}  Qf4 {[%clk 0:00:03]} 34. Kg1 {[%clk 0:00:10]}  Qf2+ {[%clk 0:00:04]} 35. Kh2 {[%clk 0:00:10]}  Qf4 {[%clk 0:00:04]} 1/2-1/2


[Site "https://www.chess.com"]